fUSD/lending_fUSD_20250609
["ID","MTS","AMOUNT","RATE_DAILY","PERIOD"]
[365141913,1749489035594,-490.0,0.00019178,2]
[365141914,1749489035604,-490.0,0.00019178,2]
[365141915,1749489035614,-490.0,0.00019178,2]
[365141916,1749489035624,-612.9,0.00019178,2]
[365141917,1749489035635,-490.0,0.00019178,2]
[365141918,1749489035645,-490.0,0.00019178,2]
[365141919,1749489035655,-490.0,0.00019178,2]
[365141920,1749489035669,-490.0,0.00019178,2]
[365141921,1749489035679,-490.0,0.00019178,2]
[365141922,1749489035689,-490.0,0.00019178,2]
[365141923,1749489035699,-490.0,0.00019178,2]
[365141924,1749489035710,-490.0,0.00019178,2]
[365141925,1749489035720,-490.0,0.00019178,2]
[365141926,1749489035729,-723.74,0.00019178,2]
[365141927,1749489035740,-490.0,0.00019178,2]
[365141928,1749489035750,-490.0,0.00019178,2]
[365141929,1749489035850,-490.0,0.00019178,2]
[365141930,1749489035860,-646.0,0.00019178,2]
[365141931,1749489035870,-490.0,0.00019178,2]
[365141932,1749489035881,-490.0,0.00019178,2]
[365141933,1749489035891,-490.0,0.00019178,2]
[365141934,1749489035902,-490.0,0.00019178,2]
[365141935,1749489035913,-490.0,0.00019178,2]
[365141936,1749489035924,-490.0,0.00019178,2]
[365141937,1749489035935,-490.0,0.00019178,2]
[365141938,1749489035945,-1151.71,0.00019178,2]
[365141939,1749489035955,-490.0,0.00019178,2]
[365141940,1749489035966,-490.0,0.00019178,2]
[365141941,1749489035976,-940.33,0.00019178,2]
[365141942,1749489035986,-711.75,0.00019178,2]
[365141943,1749489035996,-490.0,0.00019178,2]
[365141944,1749489036007,-985.77,0.00019178,2]
[365141945,1749489036017,-490.0,0.00019178,2]
[365141946,1749489036026,-226.59042316,0.00019178,2]
[365141947,1749489036037,-969.98,0.00019178,2]
[365141948,1749489036047,-490.0,0.00019178,2]
[365141949,1749489036056,-490.0,0.00019178,2]
[365141950,1749489036066,-490.0,0.00019178,2]
[365141951,1749489036075,-1249.55,0.00019178,2]
[365141952,1749489036085,-490.0,0.00019178,2]
[365141953,1749489036094,-1308.65,0.00019178,2]
[365141954,1749489036103,-490.0,0.00019178,2]
[365141955,1749489036113,-490.0,0.00019178,2]
[365141956,1749489036122,-490.0,0.00019178,2]
[365141957,1749489036131,-490.0,0.00019178,2]
[365141958,1749489036141,-542.14,0.00019178,2]
[365141959,1749489036151,-490.0,0.00019178,2]
[365141960,1749489036161,-490.0,0.00019178,2]
[365141961,1749489036171,-912.23,0.00019178,2]
[365141962,1749489036181,-490.0,0.00019178,2]
[365141963,1749489036191,-490.0,0.00019178,2]
[365141964,1749489036200,-787.85,0.00019178,2]
[365141965,1749489036210,-578.65,0.00019178,2]
[365141966,1749489036219,-822.52,0.00019178,2]
[365141967,1749489036229,-490.0,0.00019178,2]
[365141968,1749489036238,-490.0,0.00019178,2]
[365141969,1749489036247,-490.0,0.00019178,2]
[365141970,1749489036258,-490.0,0.00019178,2]
[365141971,1749489036267,-835.61,0.00019178,2]
[365141972,1749489036277,-631.56,0.00019178,2]
[365141973,1749489036288,-490.0,0.00019178,2]
[365141974,1749489036298,-1101.74,0.00019178,2]
[365141975,1749489036308,-490.0,0.00019178,2]
[365141976,1749489036317,-490.0,0.00019178,2]
[365141977,1749489036327,-490.0,0.00019178,2]
[365141978,1749489036337,-490.0,0.00019178,2]
[365141979,1749489036346,-490.0,0.00019178,2]
[365141980,1749489036356,-490.0,0.00019178,2]
[365141981,1749489036367,-490.0,0.00019178,2]
[365141982,1749489036377,-490.0,0.00019178,2]
[365141983,1749489036387,-493.9,0.00019178,2]
[365141984,1749489036397,-490.0,0.00019178,2]
[365141985,1749489036407,-490.0,0.00019178,2]
[365141986,1749489036417,-490.0,0.00019178,2]
[365141987,1749489036427,-433.42703624,0.00019178,2]
[365141988,1749489036436,-565.89,0.00019178,2]
[365141989,1749489036446,-634.89,0.00019178,2]
[365141990,1749489036455,-490.0,0.00019178,2]
[365141991,1749489036465,-490.0,0.00019178,2]
[365141992,1749489036474,-596.16,0.00019178,2]
[365141993,1749489036484,-490.0,0.00019178,2]
[365141994,1749489036495,-979.26,0.00019178,2]
[365141995,1749489036504,-632.06,0.00019178,2]
[365141996,1749489036513,-490.0,0.00019178,2]
[365141997,1749489036522,-490.0,0.00019178,2]
[365141998,1749489036531,-385.72922742,0.00019178,2]
[365141999,1749489036541,-490.0,0.00019178,2]
[365142000,1749489036553,-223.21531887,0.00019178,2]
[365142001,1749489036563,-490.0,0.00019178,2]
[365142002,1749489036573,-490.0,0.00019178,2]
[365142003,1749489036583,-1176.04,0.00019178,2]
[365142004,1749489036593,-490.0,0.00019178,2]
[365142005,1749489036603,-306.04370827,0.00019178,2]
[365142006,1749489036612,-662.8,0.00019178,2]
[365142007,1749489036623,-490.0,0.00019178,2]
[365142008,1749489036632,-490.0,0.00019178,2]
[365142009,1749489036641,-794.85,0.00019178,2]
[365142010,1749489036651,-490.0,0.00019178,2]
[365142011,1749489036664,-490.0,0.00019178,2]
[365142012,1749489036673,-1339.87,0.00019178,2]
[365142013,1749489036683,-490.0,0.00019178,2]
[365142014,1749489036692,-490.0,0.00019178,2]
[365142015,1749489036703,-724.25,0.00019178,2]
[365142016,1749489036712,-490.0,0.00019178,2]
[365142017,1749489036722,-586.68,0.00019178,2]
[365142018,1749489036732,-1259.46,0.00019178,2]
[365142019,1749489036743,-490.0,0.00019178,2]
[365142020,1749489036753,-490.0,0.00019178,2]
[365142021,1749489036762,-490.0,0.00019178,2]
[365142022,1749489036772,-490.0,0.00019178,2]
[365142023,1749489036781,-490.0,0.00019178,2]
[365142024,1749489036792,-548.25,0.00019178,2]
[365142025,1749489036802,-490.0,0.00019178,2]
[365142026,1749489036812,-490.0,0.00019178,2]
[365142027,1749489036821,-516.97,0.00019178,2]
[365142028,1749489036831,-490.0,0.00019178,2]
[365142029,1749489036840,-1370.2,0.00019178,2]
[365142030,1749489036850,-804.72,0.00019178,2]
[365142031,1749489036859,-668.64,0.00019178,2]
[365142032,1749489036869,-490.0,0.00019178,2]
[365142033,1749489036878,-490.0,0.00019178,2]
[365142034,1749489036888,-490.0,0.00019178,2]
[365142035,1749489036898,-490.0,0.00019178,2]
[365142036,1749489036908,-635.67,0.00019178,2]
[365142037,1749489036917,-490.0,0.00019178,2]
[365142038,1749489036926,-620.69,0.00019178,2]
[365142039,1749489036935,-490.0,0.00019178,2]
[365142040,1749489036944,-490.0,0.00019178,2]
[365142041,1749489036953,-490.0,0.00019178,2]
[365142042,1749489036963,-490.0,0.00019178,2]
[365142043,1749489036973,-252.95431897,0.00019178,2]
[365142044,1749489036983,-595.25390528,0.00019178,2]
[365142045,1749489037015,-76.49609472,0.00019178,2]
[365142046,1749489037024,-490.0,0.00019178,2]
[365142047,1749489037034,-359.458688,0.00019178,2]
[365142048,1749489037046,-130.541312,0.00019178,2]
[365142049,1749489037055,-490.0,0.00019178,2]
[365142050,1749489037065,-521.70303229,0.00019178,2]
[365142051,1749489037075,-490.0,0.00019178,2]
[365142052,1749489037085,-615.63,0.00019178,2]
[365142053,1749489037094,-490.0,0.00019178,2]
[365142054,1749489037103,-490.0,0.00019178,2]
[365142055,1749489037114,-490.0,0.00019178,2]
[365142056,1749489037124,-278.30612261,0.00019178,2]
[365142057,1749489037133,-490.0,0.00019178,2]
[365142058,1749489037142,-490.0,0.00019178,2]
[365142059,1749489037152,-628.45,0.00019178,2]
[365142060,1749489037162,-747.29,0.00019178,2]
[365142061,1749489037171,-490.0,0.00019178,2]
[365142062,1749489037182,-490.0,0.00019178,2]
[365142063,1749489037193,-490.0,0.00019178,2]
[365142064,1749489037203,-490.0,0.00019178,2]
[365142065,1749489037213,-1378.18,0.00019178,2]
[365142066,1749489037222,-490.0,0.00019178,2]
[365142067,1749489037232,-704.76,0.00019178,2]
[365142068,1749489037241,-490.0,0.00019178,2]
[365142069,1749489037251,-877.42,0.00019178,2]
[365142070,1749489037261,-490.0,0.00019178,2]
[365142071,1749489037270,-1538.71,0.00019178,2]
[365142072,1749489037281,-490.0,0.00019178,2]
[365142073,1749489037291,-490.0,0.00019178,2]
[365142074,1749489037300,-1171.01,0.00019178,2]
[365142075,1749489037310,-1384.03,0.00019178,2]
[365142076,1749489037320,-3580.41,0.00019178,2]
[365142077,1749489037330,-732.14,0.00019178,2]
[365142078,1749489037340,-1003.2,0.00019178,2]
[365142079,1749489037349,-490.0,0.00019178,2]
[365142080,1749489037359,-490.0,0.00019178,2]
[365142081,1749489037369,-490.0,0.00019178,2]
[365142082,1749489037379,-2674.89,0.00019178,2]
[365142083,1749489037388,-536.5100188,0.00019178,2]
[365142084,1749489037397,-490.0,0.00019178,2]
[365142085,1749489037406,-490.0,0.00019178,2]
[365142086,1749489037416,-753.15,0.00019178,2]
[365142087,1749489037426,-518.7,0.00019178,2]
[365142088,1749489037435,-490.0,0.00019178,2]
[365142089,1749489037445,-490.0,0.00019178,2]
[365142090,1749489037454,-490.0,0.00019178,2]
[365142091,1749489037464,-1307.0,0.00019178,2]
[365142092,1749489037474,-490.0,0.00019178,2]
[365142093,1749489037483,-534.65,0.00019178,2]
[365142094,1749489037492,-490.0,0.00019178,2]
[365142095,1749489037502,-490.0,0.00019178,2]
[365142096,1749489037511,-1190.29,0.00019178,2]
[365142097,1749489037520,-912.87,0.00019178,2]
[365142098,1749489037530,-1580.72,0.00019178,2]
[365142099,1749489037540,-490.0,0.00019178,2]
[365142100,1749489037550,-764.18,0.00019178,2]
[365142101,1749489037559,-490.0,0.00019178,2]
[365142102,1749489037568,-490.0,0.00019178,2]
[365142103,1749489037578,-490.0,0.00019178,2]
[365142104,1749489037587,-490.0,0.00019178,2]
[365142105,1749489037597,-490.0,0.00019178,2]
[365142106,1749489037606,-1492.5,0.00019178,2]
[365142107,1749489037615,-490.0,0.00019178,2]
[365142108,1749489037624,-1997.33,0.00019178,2]
[365142109,1749489037633,-490.0,0.00019178,2]
[365142110,1749489037643,-490.0,0.00019178,2]
[365142111,1749489037652,-617.65,0.00019178,2]
[365142112,1749489037667,-490.0,0.00019178,2]
[365142113,1749489037676,-944.02,0.00019178,2]
[365142114,1749489037685,-1116.7,0.00019178,2]
[365142115,1749489037695,-1151.29,0.00019178,2]
[365142116,1749489037705,-490.0,0.00019178,2]
[365142117,1749489037714,-756.37,0.00019178,2]
[365142118,1749489037723,-2592.19,0.00019178,2]
[365142119,1749489037732,-1299.38,0.00019178,2]
[365142120,1749489037743,-813.45,0.00019178,2]
[365142121,1749489037754,-490.0,0.00019178,2]
[365142122,1749489037763,-876.82,0.00019178,2]
[365142123,1749489037772,-901.43,0.00019178,2]
[365142124,1749489037782,-490.0,0.00019178,2]
[365142125,1749489037791,-490.0,0.00019178,2]
[365142126,1749489037801,-400.0,0.00019178,2]
[365142127,1749489037811,-502.67,0.00019178,2]
[365142128,1749489037820,-1000.0,0.00019178,2]
[365142129,1749489037831,-1093.18,0.00019178,2]
[365142130,1749489037840,-490.0,0.00019178,2]
[365142131,1749489037849,-490.0,0.00019178,2]
[365142132,1749489037859,-949.47,0.00019178,2]
[365142133,1749489037868,-295.83070683,0.00019178,2]
[365142134,1749489037877,-1187.9,0.00019178,2]
[365142135,1749489037887,-615.23,0.00019178,2]
[365142136,1749489037896,-678.94,0.00019178,2]
[365142137,1749489037906,-167.47226076,0.00019178,2]
[365142138,1749489037915,-1903.76,0.00019178,2]
[365142139,1749489037927,-2229.16,0.00019178,2]
[365142140,1749489037936,-401.98246864,0.00019178,2]
[365142141,1749489037946,-490.0,0.00019178,2]
[365142142,1749489037955,-726.14,0.00019178,2]
[365142143,1749489037964,-490.0,0.00019178,2]
[365142144,1749489037974,-496.57,0.00019178,2]
[365142145,1749489037983,-490.0,0.00019178,2]
[365142146,1749489037994,-490.0,0.00019178,2]
[365142147,1749489038004,-1416.4,0.00019178,2]
[365142148,1749489038013,-733.56,0.00019178,2]
[365142149,1749489038023,-1141.53,0.00019178,2]
[365142150,1749489038033,-17424.76,0.00019178,2]
[365142151,1749489038042,-685.79,0.00019178,2]
[365142152,1749489038054,-490.0,0.00019178,2]
[365142153,1749489038065,-1857.77,0.00019178,2]
[365142154,1749489038074,-619.56,0.00019178,2]
[365142155,1749489038084,-642.58,0.00019178,2]
[365142156,1749489038094,-490.0,0.00019178,2]
[365142157,1749489038102,-490.0,0.00019178,2]
[365142158,1749489038112,-490.0,0.00019178,2]
[365142159,1749489038122,-490.0,0.00019178,2]
[365142160,1749489038131,-490.0,0.00019178,2]
[365142161,1749489038141,-1629.16,0.00019178,2]
[365142163,1749489038151,-490.0,0.00019178,2]
[365142165,1749489038160,-490.0,0.00019178,2]
[365142166,1749489038170,-941.88,0.00019178,2]
[365142167,1749489038179,-2782.26,0.00019178,2]
[365142168,1749489038189,-807.59,0.00019178,2]
[365142170,1749489038198,-399.25144224,0.00019178,2]
[365142228,1749489039485,-334.46855776,0.00019178,2]
[365142230,1749489039494,-4445.91,0.00019178,2]
[365142232,1749489039503,-1819.62144224,0.00019178,2]
[365142234,1749489039515,-2073.31855776,0.00019178,2]
[365142236,1749489039524,-490.0,0.00019178,2]
[365142238,1749489039533,-400.07441777,0.00019178,2]
[365142241,1749489039554,-500.97558223,0.00019178,2]
[365142243,1749489039563,-925.29,0.00019178,2]
[365142245,1749489039573,-628.99,0.00019178,2]
[365142247,1749489039582,-517.95580112,0.00019178,2]
[365142331,1749489040475,-486.87419888,0.00019178,2]
[365142333,1749489040485,-668.13,0.00019178,2]
[365142335,1749489040494,-529.57,0.00019178,2]
[365142350,1749489040622,-615.04,0.00019178,2]
[365142352,1749489040633,-809.46,0.00019178,2]
[365142354,1749489040644,-1157.54,0.00019178,2]
[365142356,1749489040654,-654.08,0.00019178,2]
[365142358,1749489040665,-490.0,0.00019178,2]
[365142361,1749489040676,-490.0,0.00019178,2]
[365142363,1749489040687,-872.18,0.00019178,2]
[365142364,1749489040696,-644.81,0.00019178,2]
[365142366,1749489040707,-258.11747713,0.00019178,2]
[365142369,1749489040720,-231.88252287,0.00019178,2]
[365142371,1749489040730,-490.0,0.00019178,2]
[365142373,1749489040739,-940.01,0.00019178,2]
[365142375,1749489040749,-490.0,0.00019178,2]
[365142377,1749489040758,-490.0,0.00019178,2]
[365142379,1749489040768,-833.02,0.00019178,2]
[365142381,1749489040777,-490.0,0.00019178,2]
[365142383,1749489040786,-500.0,0.00019178,2]
[365142385,1749489040796,-1047.99,0.00019178,2]
[365142387,1749489040805,-550.43,0.00019178,2]
[365142389,1749489040815,-490.0,0.00019178,2]
[365142391,1749489040824,-490.0,0.00019178,2]
[365142393,1749489040833,-490.0,0.00019178,2]
[365142395,1749489040842,-5185.43,0.00019178,2]
[365142397,1749489040851,-490.0,0.00019178,2]
[365142398,1749489040861,-490.0,0.00019178,2]
[365142400,1749489040871,-490.0,0.00019178,2]
[365142403,1749489040881,-797.43,0.00019178,2]
[365142405,1749489040891,-490.0,0.00019178,2]
[365142406,1749489040901,-1213.7,0.00019178,2]
[365142408,1749489040911,-490.0,0.00019178,2]
[365142411,1749489040921,-648.9,0.00019178,2]
[365142413,1749489040930,-526.63,0.00019178,2]
[365142415,1749489040940,-490.0,0.00019178,2]
[365142417,1749489040949,-490.0,0.00019178,2]
[365142419,1749489040959,-814.82,0.00019178,2]
[365142421,1749489040968,-490.0,0.00019178,2]
[365142423,1749489040977,-490.0,0.00019178,2]
[365142425,1749489040987,-846.19,0.00019178,2]
[365142427,1749489040997,-602.85,0.00019178,2]
[365142429,1749489041006,-874.08,0.00019178,2]
[365142431,1749489041015,-490.0,0.00019178,2]
[365142433,1749489041025,-490.0,0.00019178,2]
[365142435,1749489041035,-2470.7,0.00019178,2]
[365142437,1749489041044,-490.0,0.00019178,2]
[365142439,1749489041056,-490.0,0.00019178,2]
[365142441,1749489041066,-2211.69,0.00019178,2]
[365142443,1749489041076,-554.28,0.00019178,2]
[365142444,1749489041086,-1176.08,0.00019178,2]
[365142446,1749489041095,-500.0,0.00019178,2]
[365142448,1749489041105,-490.0,0.00019178,2]
[365142450,1749489041115,-759.92,0.00019178,2]
[365142452,1749489041125,-1070.35,0.00019178,2]
[365142455,1749489041135,-459.43152586,0.00019178,2]
[365142457,1749489041144,-490.0,0.00019178,2]
[365142459,1749489041154,-501.95,0.00019178,2]
[365142461,1749489041163,-586.66,0.00019178,2]
[365142463,1749489041173,-1022.97,0.00019178,2]
[365142465,1749489041182,-1610.69,0.00019178,2]
[365142467,1749489041192,-1770.86,0.00019178,2]
[365142469,1749489041201,-1673.59,0.00019178,2]
[365142471,1749489041210,-490.0,0.00019178,2]
[365142473,1749489041220,-490.0,0.00019178,2]
[365142475,1749489041229,-4.32736857,0.00019178,2]
[365142491,1749489041377,-1122.31263143,0.00019178,2]
[365142493,1749489041387,-7.32828997,0.00019178,2]
[365142497,1749489041419,-482.67171003,0.00019178,2]
[365142499,1749489041429,-490.0,0.00019178,2]
[365142501,1749489041438,-490.0,0.00019178,2]
[365142503,1749489041448,-490.0,0.00019178,2]
[365142505,1749489041458,-490.0,0.00019178,2]
[365142507,1749489041467,-2500.39,0.00019178,2]
[365142509,1749489041478,-790.99,0.00019178,2]
[365142512,1749489041488,-490.0,0.00019178,2]
[365142514,1749489041497,-490.0,0.00019178,2]
[365142516,1749489041507,-505.03,0.00019178,2]
[365142518,1749489041516,-1641.67,0.00019178,2]
[365142520,1749489041525,-490.0,0.00019178,2]
[365142522,1749489041534,-490.0,0.00019178,2]
[365142524,1749489041544,-737.78,0.00019178,2]
[365142526,1749489041555,-1103.99,0.00019178,2]
[365142528,1749489041565,-490.0,0.00019178,2]
[365142530,1749489041574,-495.06,0.00019178,2]
[365142532,1749489041584,-1222.34,0.00019178,2]
[365142534,1749489041593,-490.0,0.00019178,2]
[365142536,1749489041603,-490.0,0.00019178,2]
[365142538,1749489041612,-490.0,0.00019178,2]
[365142540,1749489041621,-490.0,0.00019178,2]
[365142542,1749489041630,-981.28,0.00019178,2]
[365142544,1749489041639,-490.0,0.00019178,2]
[365142546,1749489041649,-490.0,0.00019178,2]
[365142548,1749489041658,-1885.27,0.00019178,2]
[365142550,1749489041672,-1015.12,0.00019178,2]
[365142552,1749489041681,-549.87,0.00019178,2]
[365142554,1749489041690,-490.0,0.00019178,2]
[365142555,1749489041701,-490.0,0.00019178,2]
[365142557,1749489041710,-618.18,0.00019178,2]
[365142559,1749489041719,-2989.66,0.00019178,2]
[365142561,1749489041728,-490.0,0.00019178,2]
[365142563,1749489041738,-490.0,0.00019178,2]
[365142565,1749489041749,-490.0,0.00019178,2]
[365142568,1749489041758,-2352.72,0.00019178,2]
[365142570,1749489041768,-490.0,0.00019178,2]
[365142572,1749489041777,-1124.92,0.00019178,2]
[365142574,1749489041786,-1029.02,0.00019178,2]
[365142576,1749489041796,-492.39,0.00019178,2]
[365142578,1749489041806,-1857.73,0.00019178,2]
[365142580,1749489041816,-490.0,0.00019178,2]
[365142582,1749489041825,-1463.31,0.00019178,2]
[365142584,1749489041834,-490.0,0.00019178,2]
[365142586,1749489041844,-490.0,0.00019178,2]
[365142588,1749489041853,-490.0,0.00019178,2]
[365142590,1749489041862,-868.64,0.00019178,2]
[365142592,1749489041872,-490.0,0.00019178,2]
[365142594,1749489041881,-490.0,0.00019178,2]
[365142596,1749489041891,-1892.45,0.00019178,2]
[365142597,1749489041901,-536.68,0.00019178,2]
[365142598,1749489041913,-1213.07,0.00019178,2]
[365142599,1749489041923,-565.48,0.00019178,2]
[365142600,1749489041932,-490.0,0.00019178,2]
[365142601,1749489041942,-900.68,0.00019178,2]
[365142602,1749489041952,-1258.64,0.00019178,2]
[365142603,1749489041962,-490.0,0.00019178,2]
[365142604,1749489041972,-1011.07,0.00019178,2]
[365142605,1749489041982,-500.0,0.00019178,2]
[365142606,1749489042009,-490.0,0.00019178,2]
[365142608,1749489042019,-1498.59,0.00019178,2]
[365142610,1749489042029,-683.3,0.00019178,2]
[365142612,1749489042039,-490.0,0.00019178,2]
[365142614,1749489042050,-490.0,0.00019178,2]
[365142616,1749489042060,-874.73,0.00019178,2]
[365142618,1749489042069,-490.0,0.00019178,2]
[365142620,1749489042079,-490.0,0.00019178,2]
[365142622,1749489042089,-408.20520552,0.00019178,2]
[365142623,1749489042098,-490.0,0.00019178,2]
[365142624,1749489042107,-490.0,0.00019178,2]
[365142625,1749489042117,-490.0,0.00019178,2]
[365142626,1749489042127,-490.0,0.00019178,2]
[365142627,1749489042136,-1500.0,0.00019178,2]
[365142628,1749489042146,-286.73838223,0.00019198,2]
[365142629,1749489042156,-800.0,0.000192,7]
[365142630,1749489042166,-628.48,0.00019205,30]
[365142631,1749489042176,-662.24815309,0.0001921,2]
[365142632,1749489042186,-150.0,0.00019228,2]
[365142633,1749489042197,-150.0,0.00019236,2]
[365142634,1749489042207,-662.24815309,0.00019245,2]
[365142635,1749489042218,-150.0,0.00019247,2]
[365142636,1749489042229,-150.0,0.00019252,2]
[365142638,1749489042240,-150.0,0.00019254,2]
[365142640,1749489042250,-150.0,0.00019255,2]
[365142642,1749489042261,-150.0,0.00019255,2]
[365142644,1749489042271,-5916.7965026,0.00019261,2]
[365142646,1749489042281,-661.9798886,0.00019261,2]
[365142648,1749489042291,-150.0,0.00019266,2]
[365142650,1749489042303,-150.0,0.00019269,2]
[365142652,1749489042314,-1000.0,0.00019272,2]
[365142654,1749489042324,-150.0,0.00019274,2]
[365142656,1749489042334,-150.0,0.00019275,2]
[365142658,1749489042343,-150.0,0.00019275,2]
[365142660,1749489042352,-1000.0,0.00019276,2]
[365142662,1749489042363,-150.0,0.00019276,2]
[365142664,1749489042372,-1000.0,0.00019279,2]
[365142665,1749489042382,-544.53774389,0.00019279,2]
[365142666,1749489042392,-662.24815309,0.00019279,2]
[365142667,1749489042402,-150.0,0.0001928,2]
[365142668,1749489042412,-150.0,0.0001928,2]
[365142669,1749489042421,-1000.0,0.00019284,2]
[365142670,1749489042431,-150.0,0.00019285,2]
[365142671,1749489042441,-150.0,0.00019288,2]
[365142672,1749489042451,-150.0,0.00019294,2]
[365142673,1749489042460,-150.0,0.00019295,2]
[365142674,1749489042470,-1100.0,0.000193,7]
[365142675,1749489042480,-1000.0,0.000193,2]
[365142676,1749489042490,-150.0,0.00019303,2]
[365142677,1749489042500,-150.0,0.00019306,2]
[365142678,1749489042510,-662.24815309,0.00019314,2]
[365142679,1749489042519,-341.84,0.00019314,2]
[365142680,1749489042529,-150.0,0.00019321,2]
[365142681,1749489042538,-150.0,0.00019321,2]
[365142682,1749489042549,-150.0,0.00019325,2]
[365142683,1749489042559,-150.0,0.00019329,2]
[365142684,1749489042569,-150.0,0.00019332,2]
[365142685,1749489042579,-1000.0,0.00019335,2]
[365142686,1749489042588,-150.0,0.00019338,2]
[365142687,1749489042598,-500.0,0.00019341,2]
[365142688,1749489042607,-500.0,0.00019341,2]
[365142689,1749489042616,-981.28,0.00019341,2]
[365142690,1749489042626,-981.28,0.00019341,2]
[365142691,1749489042635,-500.0,0.00019341,2]
[365142692,1749489042644,-490.0,0.00019342,2]
[365142693,1749489042654,-490.0,0.00019342,2]
[365142694,1749489042665,-490.0,0.00019342,2]
[365142695,1749489042676,-519.89,0.00019342,2]
[365142696,1749489042685,-621.8,0.00019342,2]
[365142697,1749489042695,-490.0,0.00019342,2]
[365142698,1749489042704,-490.0,0.00019342,2]
[365142699,1749489042714,-601.37,0.00019342,2]
[365142700,1749489042723,-490.0,0.00019342,2]
[365142701,1749489042732,-490.0,0.00019342,2]
[365142702,1749489042741,-490.0,0.00019342,2]
[365142703,1749489043036,-490.0,0.00019342,2]
[365142704,1749489043062,-490.0,0.00019342,2]
[365142705,1749489043073,-490.0,0.00019342,2]
[365142706,1749489043083,-490.0,0.00019342,2]
[365142707,1749489043093,-490.0,0.00019342,2]
[365142708,1749489043103,-490.0,0.00019342,2]
[365142709,1749489043113,-490.0,0.00019342,2]
[365142710,1749489043123,-157.72449,0.00019342,2]
[365142711,1749489043133,-480.0,0.00019342,2]
[365142712,1749489043143,-490.0,0.00019342,2]
[365142713,1749489043153,-490.0,0.00019342,2]
[365142714,1749489043163,-176.37241,0.00019342,2]
[365142715,1749489043173,-509.15,0.00019342,2]
[365142716,1749489043183,-490.0,0.00019342,2]
[365142717,1749489043193,-1085.41,0.00019342,2]
[365142718,1749489043203,-899.15,0.00019342,2]
[365142719,1749489043213,-490.0,0.00019342,2]
[365142720,1749489043223,-490.0,0.00019342,2]
[365142721,1749489043232,-507.55,0.00019342,2]
[365142722,1749489043242,-490.0,0.00019342,2]
[365142723,1749489043252,-490.0,0.00019342,2]
[365142724,1749489043262,-490.0,0.00019342,2]
[365142725,1749489043271,-657.01,0.00019342,2]
[365142726,1749489043281,-950.08,0.00019342,2]
[365142727,1749489043291,-490.0,0.00019342,2]
[365142729,1749489043302,-490.0,0.00019342,2]
[365142730,1749489043312,-490.0,0.00019342,2]
[365142732,1749489043321,-490.0,0.00019342,2]
[365142735,1749489043331,-490.0,0.00019342,2]
[365142736,1749489043341,-576.02,0.00019342,2]
[365142737,1749489043351,-490.0,0.00019342,2]
[365142738,1749489043360,-490.0,0.00019342,2]
[365142739,1749489043370,-490.0,0.00019342,2]